bitfinex/quotes_BTCUSD_20241201
["timestamp","ask_amount","ask_price","bid_price","bid_amount"]
[1733042876198,1.00017899,97200.0,97199.0,0.3105836]
[1733042876398,0.94017899,97200.0,97199.0,0.3105836]
[1733042876604,0.94017899,97200.0,97199.0,0.3185836]
[1733042877904,0.94017899,97200.0,97199.0,0.3085836]
[1733042878891,0.94104299,97200.0,97199.0,0.3085836]
[1733042879839,0.94104299,97200.0,97199.0,0.31957539]
[1733042880241,0.94104299,97200.0,97199.0,0.3085836]
[1733042880484,1.07114299,97200.0,97199.0,0.4259447]
[1733042880675,1.07563988,97200.0,97199.0,0.017]
[1733042880877,1.07114299,97200.0,97199.0,0.017]
[1733042881082,1.07564501,97200.0,97199.0,0.017]
[1733042881260,0.94554501,97200.0,97199.0,0.39683415]
[1733042881491,0.94554501,97200.0,97199.0,0.37983415]
[1733042881693,0.94104299,97200.0,97199.0,0.10384521]
[1733042881892,0.94104299,97200.0,97199.0,0.10584521]
[1733042882378,0.94104299,97200.0,97197.0,0.0009964]
[1733042882600,0.94104299,97200.0,97198.0,0.205765]
[1733042882834,0.94104299,97200.0,97199.0,0.12066609]
[1733042883287,0.94104299,97200.0,97199.0,0.11466609]
[1733042883515,0.94104299,97200.0,97199.0,0.11866609]
[1733042884555,0.94104299,97200.0,97199.0,0.12466609]
[1733042884780,0.94104299,97200.0,97199.0,0.11466609]
[1733042885196,0.94104299,97200.0,97199.0,0.12866609]
[1733042885714,0.94104299,97200.0,97199.0,0.12866595]
[1733042885944,0.94104299,97200.0,97199.0,0.11466595]
[1733042886165,0.94104299,97200.0,97199.0,0.12684521]
[1733042886711,0.94104299,97200.0,97199.0,0.11184521]
[1733042887527,0.94104299,97200.0,97199.0,0.10284521]
[1733042887528,1.02324299,97200.0,97199.0,0.10284521]
[1733042887763,1.02324299,97200.0,97199.0,0.11184521]
[1733042888198,1.02324299,97200.0,97199.0,0.11084521]
[1733042888458,1.02324299,97200.0,97199.0,0.11984521]
[1733042888653,1.02324299,97200.0,97199.0,0.10284521]
[1733042889042,1.02324299,97200.0,97199.0,0.11684521]
[1733042889222,1.02324299,97200.0,97199.0,0.10784521]
[1733042889426,1.02324299,97200.0,97199.0,0.10284521]
[1733042890046,1.02324299,97200.0,97199.0,0.10884521]
[1733042890455,1.07234299,97200.0,97199.0,0.006]
[1733042890660,1.07234299,97200.0,97199.0,0.42431831]
[1733042890856,1.07234299,97200.0,97199.0,0.63008131]
[1733042891063,1.07234299,97200.0,97199.0,0.211763]
[1733042891264,1.07234299,97200.0,97199.0,0.2164902]
[1733042891487,1.07234299,97200.0,97199.0,0.0107272]
[1733042891723,1.07234299,97200.0,97199.0,0.0067272]
[1733042891836,1.07234299,97200.0,97199.0,0.0097272]
[1733042892321,1.07234299,97200.0,97199.0,0.0067272]
[1733042892528,1.07234299,97200.0,97199.0,0.2214902]
[1733042892755,1.07234299,97200.0,97199.0,0.0107272]
[1733042892972,1.07234299,97200.0,97199.0,0.0157272]
[1733042894097,1.07234299,97200.0,97199.0,0.0067272]
[1733042894306,1.07234299,97200.0,97199.0,0.0017272]
[1733042894779,1.07234299,97200.0,97199.0,0.0147272]
[1733042894975,1.07234299,97200.0,97199.0,0.0067272]
[1733042895447,1.07234299,97200.0,97199.0,0.0107272]
[1733042895689,1.07234299,97200.0,97199.0,0.0067272]
[1733042895870,1.07234299,97200.0,97199.0,0.0157272]
[1733042896333,1.07234299,97200.0,97199.0,0.0107272]
[1733042896756,1.07234299,97200.0,97199.0,0.0017272]
[1733042897654,1.07234299,97200.0,97199.0,0.0067272]
[1733042898126,1.07234299,97200.0,97199.0,0.0107272]
[1733042898335,1.07234299,97200.0,97199.0,0.0067272]
[1733042898793,1.07234299,97200.0,97199.0,0.0107272]
[1733042899004,1.07234299,97200.0,97199.0,0.0017272]
[1733042899221,1.07234299,97200.0,97199.0,0.0067272]
[1733042899434,1.07234299,97200.0,97199.0,0.0097272]
[1733042899681,1.07234299,97200.0,97199.0,0.0047272]
[1733042899881,1.07234299,97200.0,97199.0,0.0077272]
[1733042900627,1.07234299,97200.0,97199.0,0.0047272]
[1733042901029,1.07234299,97200.0,97199.0,0.0037272]
[1733042901410,1.07234299,97200.0,97199.0,0.0017272]
[1733042901631,1.07234299,97200.0,97199.0,0.0047272]
[1733042901837,1.07234299,97200.0,97199.0,0.0067272]
[1733042902297,1.07234299,97200.0,97199.0,0.0017272]
[1733042902508,1.07234299,97200.0,97199.0,0.0047272]
[1733042902709,1.07234299,97200.0,97199.0,0.0017272]
[1733042903148,1.07234299,97200.0,97199.0,0.0057272]
[1733042904256,1.07234299,97200.0,97199.0,0.0047272]
[1733042904730,1.07234299,97200.0,97199.0,0.0057272]
[1733042905029,1.07234299,97200.0,97199.0,0.0027272]
[1733042905237,1.07234299,97200.0,97199.0,0.0057272]
[1733042908248,1.07234299,97200.0,97199.0,0.2830798]
[1733042908645,1.07234299,97200.0,97199.0,0.0057272]
[1733042908845,1.07234299,97200.0,97199.0,0.0017272]
[1733042909341,1.07334299,97200.0,97199.0,0.0017272]
[1733042909563,1.07234299,97200.0,97199.0,0.0017272]
[1733042910021,1.07234299,97200.0,97199.0,0.0027272]
[1733042914286,1.07234299,97200.0,97199.0,0.28002096]
[1733042915233,1.07234299,97200.0,97199.0,0.0027272]
[1733042915657,0.94104299,97200.0,97199.0,0.28002096]
[1733042916070,0.94104299,97200.0,97199.0,0.0027272]
[1733042916501,0.94104299,97200.0,97199.0,0.2799902]
[1733042916703,0.94104299,97200.0,97199.0,0.0027272]
[1733042918873,0.94104299,97200.0,97199.0,0.2084902]
[1733042919762,0.94104299,97200.0,97199.0,0.31033541]
[1733042920186,0.94104299,97200.0,97199.0,0.31433541]
[1733042921072,0.94104299,97200.0,97199.0,0.31633541]
[1733042921279,0.94104299,97200.0,97199.0,0.31233541]
[1733042921488,0.94104299,97200.0,97199.0,0.31033541]
[1733042921703,0.94104299,97200.0,97199.0,0.31433541]
[1733042921954,0.94104299,97200.0,97199.0,0.31633541]
[1733042922408,0.94104299,97200.0,97199.0,0.32533541]
[1733042935236,0.94104299,97200.0,97199.0,0.0167272]
[1733042936951,0.93604299,97200.0,97199.0,0.0167272]
[1733042940253,0.98474299,97200.0,97199.0,0.0167272]
[1733042940923,1.06244299,97200.0,97199.0,0.0167272]
[1733042941375,1.06244299,97200.0,97199.0,0.29409138]
[1733042941590,1.06244299,97200.0,97199.0,0.0107272]
[1733042941809,1.06244299,97200.0,97199.0,0.28809691]
[1733042942043,1.06244299,97200.0,97199.0,0.0127272]
[1733042942260,1.06244299,97200.0,97199.0,0.0037272]
[1733042942699,1.06244299,97200.0,97199.0,0.0067272]
[1733042942912,1.06244299,97200.0,97199.0,0.0037272]
[1733042943128,1.06244299,97200.0,97199.0,0.0017272]
[1733042943377,0.93604299,97200.0,97199.0,0.0057272]
[1733042943594,0.93604299,97200.0,97199.0,0.0037272]
[1733042944077,0.93604299,97200.0,97199.0,0.0067272]
[1733042944270,0.93604299,97200.0,97199.0,0.0027272]
[1733042944740,0.93604299,97200.0,97199.0,0.0017272]
[1733042945152,0.93604299,97200.0,97199.0,0.0047272]
[1733042946213,0.93604299,97200.0,97199.0,0.28807646]
[1733042946864,0.93604299,97200.0,97199.0,0.0107272]
[1733042949958,0.93604299,97200.0,97199.0,0.0017272]
[1733042950192,0.93604299,97200.0,97199.0,0.0027272]
[1733042950408,0.93604299,97200.0,97199.0,0.0057272]
[1733042950622,0.93604299,97200.0,97199.0,0.0047272]
[1733042951088,0.93604299,97200.0,97199.0,0.0027272]
[1733042951519,0.93604299,97200.0,97199.0,0.0057272]
[1733042951734,1.03887445,97200.0,97199.0,0.0057272]
[1733042951973,1.16537445,97200.0,97199.0,0.0057272]
[1733042952182,1.06254299,97200.0,97199.0,0.0057272]
[1733042952375,1.06254299,97200.0,97199.0,0.0047272]
[1733042952895,1.06254299,97200.0,97199.0,0.0037272]
[1733042953119,1.06254299,97200.0,97199.0,0.0067272]
[1733042953344,1.06254299,97200.0,97199.0,0.0047272]
[1733042953531,1.06354299,97200.0,97199.0,0.0017272]
[1733042953795,1.06454299,97200.0,97199.0,0.0017272]
[1733042954012,1.06354299,97200.0,97199.0,0.0017272]
[1733042954227,1.06254299,97200.0,97199.0,0.0017272]
[1733042954446,1.06354299,97200.0,97199.0,0.0017272]
[1733042954659,1.06254299,97200.0,97199.0,0.0017272]
[1733042954877,1.06354299,97200.0,97199.0,0.0017272]
[1733042955103,0.93704299,97200.0,97199.0,0.00122114]
[1733042955746,0.93704299,97200.0,97198.0,0.205765]
[1733042955999,0.93604299,97200.0,97198.0,0.205765]
[1733042956216,0.93604299,97200.0,97199.0,0.10384521]
[1733042956857,0.93604299,97200.0,97199.0,0.10284521]
[1733042957270,0.93604299,97200.0,97199.0,0.10784521]
[1733042957482,0.93604299,97200.0,97199.0,0.10284521]
[1733042957706,0.93604299,97200.0,97199.0,0.11184521]
[1733042957920,0.93604299,97200.0,97199.0,0.19194521]
[1733042958128,0.93604299,97200.0,97199.0,0.23844521]
[1733042959175,0.93604299,97200.0,97199.0,0.23344521]
[1733042959423,0.93604299,97200.0,97199.0,0.23844521]
[1733042959599,0.93604299,97200.0,97199.0,0.22944521]
[1733042959804,0.93604299,97200.0,97199.0,0.23844447]
[1733042960009,0.93604299,97200.0,97199.0,0.23344447]
[1733042960218,0.93604299,97200.0,97199.0,0.22944447]
[1733042960421,0.93604299,97200.0,97199.0,0.23844447]
[1733042961241,0.93604299,97200.0,97199.0,0.24017267]
[1733042963039,0.93604299,97200.0,97199.0,0.27317267]
[1733042963282,0.93604299,97200.0,97199.0,0.58507378]
[1733042963519,0.93604299,97200.0,97199.0,0.22667267]
[1733042965287,0.93604299,97200.0,97199.0,0.20705167]
[1733042967330,0.93604299,97200.0,97199.0,0.19705167]
[1733042967770,0.93604299,97200.0,97199.0,0.17405167]
[1733042968423,0.93604299,97200.0,97199.0,0.09895167]
[1733042968877,0.93604299,97200.0,97199.0,0.0157282]
[1733042969970,1.03887445,97200.0,97199.0,0.0157282]
[1733042970215,0.93604299,97200.0,97199.0,0.0157282]
[1733042970708,1.01904299,97200.0,97199.0,0.29295303]
[1733042970922,1.01904299,97200.0,97199.0,0.0157282]
[1733042971618,1.01904299,97200.0,97199.0,0.29294672]
[1733042973393,1.01904299,97200.0,97199.0,0.0157282]
[1733042973609,0.93604299,97200.0,97199.0,0.29294203]
[1733042974278,0.93604299,97200.0,97199.0,0.29293855]
[1733042975215,0.93604299,97200.0,97199.0,0.29294676]
[1733042975422,0.93604299,97200.0,97199.0,0.0157282]
[1733042975570,0.98534299,97200.0,97199.0,0.0157282]
[1733042976612,1.05272811,97200.0,97199.0,0.0157282]
[1733042976781,1.13572811,97200.0,97199.0,0.0157282]
[1733042977190,1.06834299,97200.0,97199.0,0.0157282]
[1733042982339,0.93604299,97200.0,97199.0,0.0157282]
[1733042982770,0.93604299,97200.0,97199.0,1.81857341]
[1733042983237,0.93604299,97200.0,97199.0,1.80457341]
[1733042983489,0.93604299,97200.0,97199.0,1.7047282]
[1733042983702,0.93604299,97200.0,97199.0,1.7057282]
[1733042983915,0.93604299,97200.0,97199.0,1.7027282]
[1733042984143,0.93604299,97200.0,97199.0,1.7117282]
[1733042985202,0.93604299,97200.0,97199.0,1.81357341]
[1733042986057,0.93604299,97200.0,97199.0,1.81857341]
[1733042989698,0.93604299,97200.0,97199.0,1.94707341]
[1733042991996,0.93604299,97200.0,97199.0,1.93307341]
[1733042992213,0.93604299,97200.0,97199.0,2.25087273]
[1733042992423,0.93604299,97200.0,97199.0,1.93907341]
[1733042993073,0.93604299,97200.0,97199.0,2.25087273]
[1733042993312,0.93604299,97200.0,97199.0,2.25987273]
[1733042993479,0.93604299,97200.0,97199.0,1.94807341]
[1733042994894,0.93604299,97200.0,97199.0,1.98107341]
[1733042995159,0.93604299,97200.0,97199.0,2.29287273]
[1733042995388,0.93604299,97200.0,97199.0,2.29273714]
[1733042996217,0.93604299,97200.0,97199.0,1.98107341]
[1733042996662,0.93604299,97200.0,97199.0,2.29272147]
[1733042997740,0.93604299,97200.0,97199.0,1.98107341]
[1733042998587,0.93604299,97200.0,97199.0,1.96607341]
[1733042998805,0.93604299,97200.0,97199.0,2.97207341]
[1733042999013,0.93604299,97200.0,97199.0,2.98107341]
[1733042999244,0.93604299,97200.0,97199.0,3.13107341]
[1733042999665,0.93604299,97200.0,97199.0,3.16272969]
[1733042999871,0.93604299,97200.0,97199.0,3.15672969]
[1733043000178,0.93604299,97200.0,97199.0,3.15772969]
[1733043000179,0.38764299,97200.0,97199.0,3.15772969]
[1733043000386,0.38764299,97200.0,97199.0,3.12607341]
[1733043000533,0.38764299,97200.0,97199.0,3.13507341]
[1733043000765,0.38764299,97200.0,97199.0,3.12607341]
[1733043001148,0.38764299,97200.0,97199.0,3.13507341]
[1733043001366,0.38764299,97200.0,97199.0,3.14307341]
[1733043001805,0.38764299,97200.0,97199.0,3.13507341]
[1733043002024,0.38764299,97200.0,97199.0,3.12607341]
[1733043002230,0.38764299,97200.0,97199.0,3.13507341]
[1733043002436,0.02856299,97200.0,97199.0,3.13507341]
[1733043002639,0.0002,97209.0,97208.0,0.431844]
[1733043002851,0.0002596,97209.0,97208.0,0.57018801]
[1733043003508,0.0002596,97209.0,97208.0,0.49258801]
[1733043004381,0.0002596,97209.0,97208.0,0.46958801]
[1733043004593,0.0002596,97209.0,97208.0,0.32858801]
[1733043004803,0.0002596,97209.0,97208.0,0.33758801]
[1733043005016,0.0500596,97209.0,97208.0,0.12184401]
[1733043005861,0.2558016,97209.0,97208.0,0.0099988]
[1733043006065,0.1269238,97209.0,97208.0,0.0099988]
[1733043006295,0.1269238,97209.0,97208.0,0.0189988]
[1733043006744,0.1269238,97209.0,97208.0,0.0099988]
[1733043007136,0.1269238,97209.0,97208.0,0.0189988]
[1733043007343,0.1269238,97209.0,97208.0,0.0099988]
[1733043007557,0.1269238,97209.0,97208.0,0.0009988]
[1733043007774,0.1269238,97209.0,97208.0,0.0079988]
[1733043007986,0.1269238,97209.0,97208.0,0.0049988]
[1733043008489,0.0011238,97209.0,97208.0,0.10784401]
[1733043008705,0.0011238,97209.0,97208.0,0.0019988]
[1733043009395,0.0011238,97209.0,97208.0,0.0009988]
[1733043009619,0.0011238,97209.0,97208.0,0.0029988]
[1733043010068,0.0011238,97209.0,97208.0,0.10684401]
[1733043010281,0.0011238,97209.0,97208.0,0.10584401]
[1733043010715,0.0011238,97209.0,97208.0,0.11284401]
[1733043011138,0.0011238,97209.0,97208.0,0.10384401]
[1733043011559,0.0011238,97209.0,97208.0,0.10784401]
[1733043012005,0.0011238,97209.0,97208.0,0.11184401]
[1733043012422,0.0011238,97209.0,97208.0,0.11584401]
[1733043012675,0.0011238,97209.0,97208.0,0.52444591]
[1733043013601,0.0011238,97209.0,97208.0,0.11584401]
[1733043014905,0.0011238,97209.0,97208.0,0.11184401]
[1733043015320,0.0011238,97209.0,97208.0,0.10784401]
[1733043015711,0.0011238,97209.0,97208.0,0.51655042]
[1733043016572,0.0011238,97209.0,97208.0,0.10784401]
[1733043017463,0.0011238,97209.0,97208.0,0.11684401]
[1733043018839,0.0011238,97209.0,97208.0,0.0139988]
[1733043019494,0.0011238,97209.0,97208.0,0.42278908]
[1733043019928,0.0011238,97209.0,97208.0,0.0139988]
[1733043025913,0.0011238,97209.0,97208.0,0.13984401]
[1733043026116,0.0011238,97209.0,97208.0,0.1416646]
[1733043026328,0.0011238,97209.0,97208.0,0.11684401]
[1733043027709,0.0011238,97209.0,97208.0,0.11866463]
[1733043029617,0.0011238,97209.0,97208.0,0.14166463]
[1733043030108,0.0011238,97209.0,97208.0,0.15166463]
[1733043030321,0.0011238,97209.0,97208.0,0.14766463]
[1733043030541,0.0011238,97209.0,97208.0,0.32935165]
[1733043030758,0.0011238,97209.0,97208.0,0.32853103]
[1733043030971,0.0011238,97209.0,97208.0,0.33653103]
[1733043031395,0.0011238,97209.0,97208.0,0.32853103]
[1733043031609,0.0011238,97209.0,97208.0,0.33753103]
[1733043031843,0.0011238,97209.0,97208.0,0.35768201]
[1733043032070,0.0011238,97209.0,97208.0,0.34868201]
[1733043032302,0.0011238,97209.0,97208.0,0.35768201]
[1733043032571,0.0011238,97209.0,97208.0,0.36168201]
[1733043032791,0.0011238,97209.0,97208.0,0.47348201]
[1733043033018,0.0011238,97209.0,97208.0,0.46048201]
[1733043033521,8e-07,97209.0,97208.0,0.35768201]
[1733043033757,8e-07,97209.0,97208.0,0.46948201]
[1733043034018,0.0817,97246.0,97226.0,0.365706]
[1733043034209,0.0817,97246.0,97226.0,0.48253921]
[1733043034518,0.0817,97246.0,97226.0,0.45953921]
[1733043034742,0.205857,97249.0,97226.0,0.41530797]
[1733043034743,0.0462,97228.0,97226.0,0.41530797]
[1733043034956,0.0963786,97227.0,97226.0,0.10383321]
[1733043035420,0.10400972,97227.0,97226.0,0.10383321]
[1733043035649,0.10400972,97227.0,97226.0,0.11283321]
[1733043035883,0.10400972,97227.0,97226.0,0.10383321]
[1733043036300,0.10400972,97227.0,97226.0,0.11283321]
[1733043036738,0.10400972,97227.0,97226.0,0.11683321]
[1733043037378,0.10400972,97227.0,97226.0,0.11283321]
[1733043037683,0.10400972,97227.0,97226.0,0.10383321]
[1733043037921,0.10400972,97227.0,97226.0,0.11283321]
[1733043038155,0.02230972,97227.0,97226.0,0.10565363]
[1733043038389,0.02230972,97227.0,97226.0,0.10565352]
[1733043038617,0.0146786,97227.0,97226.0,0.29765352]
[1733043038852,0.0146786,97227.0,97226.0,0.28683321]
[1733043039305,0.0146786,97227.0,97226.0,0.29583321]
[1733043039520,0.0146786,97227.0,97226.0,0.29083321]
[1733043039931,0.0146786,97227.0,97226.0,0.28683321]
[1733043040336,0.0146786,97227.0,97226.0,0.29283321]
[1733043040777,0.0146786,97227.0,97226.0,0.30783464]
[1733043041001,0.0146786,97227.0,97226.0,0.31683464]
[1733043041213,0.0146786,97227.0,97226.0,0.32283464]
[1733043041662,0.0146786,97227.0,97226.0,0.31383464]
[1733043041880,0.0146786,97227.0,97226.0,0.32283464]
[1733043042301,0.0146786,97227.0,97226.0,0.40343464]
[1733043042523,0.0155429,97227.0,97226.0,0.39743464]
[1733043042763,0.0155429,97227.0,97226.0,0.37643321]
[1733043042969,0.0155429,97227.0,97226.0,0.38543321]
[1733043046952,0.0155429,97227.0,97226.0,0.37643321]
[1733043047125,0.0155429,97227.0,97226.0,0.36743321]
[1733043047326,0.0155429,97227.0,97226.0,0.37643321]
[1733043047535,0.0155429,97227.0,97226.0,0.38543321]
[1733043048764,0.0155429,97227.0,97226.0,0.37643321]
[1733043049681,0.0155429,97227.0,97226.0,0.29483321]
[1733043050387,0.0155429,97227.0,97226.0,0.60560939]
[1733043050588,0.0155429,97227.0,97226.0,0.29483321]
[1733043051352,0.0155429,97227.0,97226.0,0.30483321]
[1733043054112,0.0155429,97227.0,97226.0,0.31696261]
[1733043054336,0.0478,97241.0,97228.0,0.033]
[1733043054554,0.0478,97241.0,97228.0,0.29979459]
[1733043054760,0.0478,97241.0,97228.0,0.29797461]
[1733043055564,0.0478,97241.0,97228.0,0.30697461]
[1733043055748,0.0478,97241.0,97228.0,0.31597461]
[1733043060950,0.0478,97241.0,97228.0,0.30597461]
[1733043062729,0.0478,97241.0,97228.0,0.31597461]
[1733043063533,0.0478,97241.0,97228.0,0.62677889]
[1733043064143,0.0478,97241.0,97228.0,0.61464949]
[1733043064367,0.0478,97241.0,97228.0,0.3354988]
[1733043066077,0.0478,97241.0,97240.0,0.205676]
[1733043066290,0.0478,97241.0,97240.0,0.30950751]
[1733043066474,0.0539245,97241.0,97240.0,0.30950751]
[1733043066674,0.0478,97241.0,97240.0,0.30950751]
[1733043067338,0.04797174,97241.0,97240.0,0.31750751]
[1733043067998,0.13047174,97241.0,97240.0,0.31750751]
[1733043068735,0.13047174,97241.0,97240.0,0.32650751]
[1733043072534,0.13047174,97241.0,97240.0,0.63739352]
[1733043072940,0.13047174,97241.0,97240.0,0.32650751]
[1733043073320,0.04797174,97241.0,97240.0,0.32650751]
[1733043073720,0.00017174,97241.0,97240.0,0.32650751]
[1733043074440,0.00017174,97241.0,97240.0,0.35823031]
[1733043075930,0.00017174,97241.0,97240.0,0.36903544]
[1733043077789,0.00103574,97241.0,97240.0,0.54203544]
[1733043082310,0.00103574,97241.0,97240.0,0.51903544]
[1733043082731,0.00103574,97241.0,97240.0,0.48731264]
[1733043083250,0.00103574,97241.0,97240.0,0.33731264]
[1733043083546,0.12983574,97241.0,97240.0,0.33731264]
[1733043083750,0.13601829,97241.0,97240.0,0.13163664]
[1733043083893,0.13601829,97241.0,97240.0,0.0179863]
[1733043090517,0.13601829,97241.0,97240.0,0.12083151]
[1733043090994,0.13601829,97241.0,97240.0,0.12255931]
[1733043096377,0.00721829,97241.0,97240.0,0.12255931]
[1733043096828,0.00103574,97241.0,97240.0,0.12255931]
[1733043097983,0.00103574,97241.0,97240.0,0.12437937]
[1733043098215,0.00103574,97241.0,97240.0,0.27437937]
[1733043098508,0.00103574,97241.0,97240.0,0.27255931]
[1733043102206,0.00103574,97241.0,97240.0,0.30425823]
[1733043102433,0.205605,97274.0,97253.0,0.205649]
[1733043102696,0.205605,97274.0,97254.0,0.10384421]
[1733043102697,0.205817,97269.0,97254.0,0.10384421]
[1733043102936,0.0002,97269.0,97254.0,0.10384421]
[1733043103355,0.000151,97256.0,97254.0,0.10384421]
[1733043103603,0.000151,97256.0,97254.0,0.10566406]
[1733043104021,0.000151,97256.0,97254.0,0.11466406]
[1733043104243,0.000151,97256.0,97254.0,0.10566406]
[1733043104653,0.000151,97256.0,97254.0,0.11466406]
[1733043105296,0.000151,97256.0,97254.0,0.19986406]
[1733043105504,0.000151,97256.0,97254.0,0.12466406]
[1733043105710,0.000151,97256.0,97254.0,0.27466406]
[1733043105921,0.000151,97256.0,97254.0,0.26384421]
[1733043106180,0.000151,97256.0,97254.0,0.80517623]
[1733043106405,0.000151,97256.0,97254.0,0.43114421]
[1733043106607,0.000151,97256.0,97254.0,0.44479442]
[1733043106809,0.000151,97256.0,97254.0,0.45379442]
[1733043106979,0.000151,97256.0,97254.0,0.46279442]
[1733043108126,0.000151,97256.0,97254.0,0.45379442]
[1733043108508,0.000151,97256.0,97254.0,0.34815396]
[1733043108745,0.000151,97256.0,97254.0,0.41445396]
[1733043108949,0.000151,97256.0,97254.0,0.32515396]
[1733043109191,0.000151,97256.0,97254.0,0.82486707]
[1733043109377,0.000151,97256.0,97254.0,0.78321686]
[1733043109624,0.000151,97256.0,97254.0,0.29350375]
[1733043110011,0.000151,97256.0,97254.0,0.28350375]
[1733043110297,0.000151,97256.0,97254.0,0.29250375]
[1733043110483,0.000151,97256.0,97254.0,0.28350375]
[1733043110820,0.000151,97256.0,97254.0,0.29250375]
[1733043111040,0.000151,97256.0,97254.0,0.28350375]
[1733043111249,0.000151,97256.0,97254.0,0.13350375]
[1733043111445,0.000151,97256.0,97254.0,0.13532339]
[1733043112254,0.000151,97256.0,97254.0,0.14432339]
[1733043112659,0.0003634,97255.0,97254.0,0.13532339]
[1733043112861,0.0003634,97255.0,97254.0,0.12632339]
[1733043113100,0.0003634,97255.0,97254.0,0.14432339]
[1733043113624,0.0003634,97255.0,97254.0,0.12632339]
[1733043113824,0.0003634,97255.0,97254.0,0.13532339]
[1733043114244,0.0003634,97255.0,97254.0,0.12805099]
[1733043114460,0.0003634,97255.0,97254.0,0.13705099]
[1733043114703,0.0003634,97255.0,97254.0,0.36235099]
[1733043114970,0.0003634,97255.0,97254.0,0.37953135]
[1733043115574,0.0003634,97255.0,97254.0,0.39353135]
[1733043115785,0.0003634,97255.0,97254.0,0.40253135]
[1733043116213,0.0003634,97255.0,97254.0,0.90224446]
[1733043116415,0.0003634,97255.0,97254.0,0.39353135]
[1733043116752,0.0003634,97255.0,97254.0,0.38453135]
[1733043116960,0.0003634,97255.0,97254.0,0.39353135]
[1733043117363,0.0003634,97255.0,97254.0,0.38453135]
[1733043117790,0.0003634,97255.0,97254.0,0.39353135]
[1733043117991,0.0003634,97255.0,97254.0,0.89324446]
[1733043118192,0.0003634,97255.0,97254.0,0.40253135]
[1733043118403,0.0003634,97255.0,97254.0,0.32723135]
[1733043118604,0.0003634,97255.0,97254.0,0.40253135]
[1733043118813,0.0003634,97255.0,97254.0,0.39353135]
[1733043119243,0.0003634,97255.0,97254.0,0.40253135]
[1733043119708,0.0003634,97255.0,97254.0,0.32723135]
[1733043120153,0.0218784,97279.0,97277.0,0.205598]
[1733043120367,0.0218784,97279.0,97278.0,0.10384181]
[1733043121667,0.02247444,97279.0,97278.0,0.10384181]
[1733043122701,0.02247444,97279.0,97278.0,0.11984181]
[1733043123401,0.06767444,97279.0,97278.0,0.0169966]
[1733043123857,0.07725738,97279.0,97278.0,0.0169966]
[1733043124107,0.06767444,97279.0,97278.0,0.0169966]
[1733043124328,0.07725738,97279.0,97278.0,0.0169966]
[1733043125625,0.07812118,97279.0,97278.0,0.0169966]
[1733043127673,0.07812118,97279.0,97278.0,1.7169966]
[1733043128087,0.06853824,97279.0,97278.0,1.7169966]
[1733043129775,0.07812827,97279.0,97278.0,1.7169966]
[1733043135345,0.07812827,97279.0,97278.0,2.12534522]
[1733043135565,0.06853824,97279.0,97278.0,2.12534522]
[1733043136195,0.06853824,97279.0,97278.0,1.7169966]
[1733043137082,0.06853824,97279.0,97278.0,1.7187238]
[1733043137897,0.06853824,97279.0,97278.0,1.7117238]
[1733043138113,0.06853824,97279.0,97278.0,1.7137238]
[1733043138671,0.06853824,97279.0,97278.0,1.7117238]
[1733043139148,0.06853824,97279.0,97278.0,1.7047238]
[1733043139596,0.06853824,97279.0,97278.0,1.7067238]
[1733043140067,0.07853824,97279.0,97278.0,1.7027238]
[1733043140303,0.26435467,97279.0,97278.0,1.7027238]
[1733043140557,0.26435467,97279.0,97278.0,1.6537238]
[1733043140840,0.27402841,97279.0,97278.0,1.5766165]
[1733043141095,0.22405719,97279.0,97278.0,1.5766165]
[1733043141815,0.22405719,97279.0,97278.0,1.4485165]
[1733043142237,0.17885719,97279.0,97278.0,1.2032165]
[1733043143278,0.17985719,97279.0,97278.0,1.0994165]
[1733043143623,0.17985719,97279.0,97278.0,1.0582965]
[1733043143824,0.17985719,97279.0,97278.0,0.9966165]
[1733043144276,0.18085719,97279.0,97278.0,0.9976165]
[1733043144484,0.17985719,97279.0,97278.0,0.9976165]
[1733043144695,0.17985719,97279.0,97278.0,0.8948165]
[1733043144908,0.23896031,97279.0,97278.0,0.8948165]
[1733043145310,0.25655766,97279.0,97278.0,0.8948165]
[1733043145519,3.62267866,97279.0,97278.0,0.8948165]
[1733043145741,4.30407876,97279.0,97278.0,0.7910165]
[1733043145946,4.67095942,97279.0,97278.0,0.7910165]
[1733043146146,5.26719442,97279.0,97278.0,0.7038477]
[1733043146354,3.10985142,97279.0,97278.0,0.6638477]
[1733043146564,3.10885142,97279.0,97278.0,0.6628477]
[1733043146790,2.84189897,97279.0,97278.0,0.5600477]
[1733043147003,0.26001297,97279.0,97278.0,0.5600477]
[1733043147216,0.26101297,97279.0,97278.0,0.5610477]
[1733043147648,0.25901297,97279.0,97278.0,0.5590477]
[1733043147853,0.26001297,97279.0,97278.0,0.5600477]
[1733043148281,0.25757416,97279.0,97278.0,0.5600477]
[1733043148493,0.19984481,97279.0,97278.0,0.4562477]
[1733043148700,0.13491375,97279.0,97278.0,0.4572477]
[1733043149121,0.13591375,97279.0,97278.0,0.4582477]
[1733043149332,0.13491375,97279.0,97278.0,0.4572477]
[1733043149558,0.13391375,97279.0,97278.0,0.4562477]
[1733043149781,0.19153224,97279.0,97278.0,0.4572477]
[1733043149992,0.13391375,97279.0,97278.0,0.4562477]
[1733043150217,0.12491375,97279.0,97278.0,0.4562477]
[1733043150635,0.12391375,97279.0,97278.0,0.4562477]
[1733043150843,0.12591375,97279.0,97278.0,0.4572477]
[1733043151068,0.13591375,97279.0,97278.0,0.4572477]
[1733043151314,0.13491375,97279.0,97278.0,0.4562477]
[1733043151523,0.21262253,97279.0,97278.0,0.4562477]
[1733043151856,0.21362253,97279.0,97278.0,0.4562477]
[1733043152723,0.21162253,97279.0,97278.0,0.4562477]
[1733043153185,0.21262253,97279.0,97278.0,0.4562477]
[1733043153424,0.01106854,97279.0,97278.0,0.4562477]
[1733043153844,0.01206854,97279.0,97278.0,0.4562477]
[1733043154274,0.01306854,97279.0,97278.0,0.4562477]
[1733043154709,0.01206854,97279.0,97278.0,0.4562477]
[1733043155127,0.00245984,97279.0,97278.0,0.4582477]
[1733043155533,0.00145984,97279.0,97278.0,0.4562477]
[1733043155875,0.00145984,97279.0,97278.0,0.4582477]
[1733043156292,0.00145984,97279.0,97278.0,0.5368477]
[1733043156498,0.00145984,97279.0,97278.0,0.7905437]
[1733043157766,0.00145984,97279.0,97278.0,0.7955437]
[1733043158175,0.00145984,97279.0,97278.0,0.5899477]
[1733043158391,0.00145984,97279.0,97278.0,0.5879477]
[1733043158676,0.00145984,97279.0,97278.0,0.4612477]
[1733043159084,0.01106785,97279.0,97278.0,0.4612477]
[1733043159309,0.20705384,97279.0,97278.0,0.4562477]
[1733043159749,0.20705384,97279.0,97278.0,0.6943851]
[1733043159984,0.21666185,97279.0,97278.0,0.6893851]
[1733043160223,0.20705384,97279.0,97278.0,0.4632477]
[1733043160470,0.22666185,97279.0,97278.0,0.4632477]
[1733043160703,0.36250706,97279.0,97278.0,0.4592477]
[1733043160941,0.41931627,97279.0,97278.0,0.4672477]
[1733043161178,0.41931627,97279.0,97278.0,0.4642477]
[1733043161386,0.41931627,97279.0,97278.0,0.4562477]